{"text_format":"1","workbook":"xlsx","n_sheets":11,"sheets":["Instruktioner","Artiklar","SVEkatalog_Artiklar","Fältformat","Enhetskoder","Import","Versionshantering","Sheet1","SVE_Mappning","SVE_Kodlista","temp_intern"],"not_rendered":{"charts":0,"images":7,"macros":1,"external_links":0,"defined_names":3,"comments":1,"pivot_tables":0},"unopened":[],"bounds":{"document_bytes":16777216,"sheet_cells":100000,"rows_first":2000,"rows_last":500,"rows_between":2000,"halvings":0,"cell_chars":16384,"cell_head_chars":4096},"cells_cut":0,"cells_raw":0,"read":"whole","date_system":"1900"}

{"sheet":"Instruktioner","index":0,"n_rows":137,"n_cols":2,"rows_kept":137,"cut":false,"hidden":false,"merged":[]}
[]
[]
[null,"Artikelmall för E-Procurement"]
[null,"Denna mall används för inläsning av artikelinformation för Unit4 E-Procurement. Artikelinformationen fylls i fliken 'Artiklar' och valideras sedan enkellt"]
[null,"genom att klicka på Unit4 loggan. Viss validering sker löpande genom val i definierad lista. Notera att valideringen är av teknisk karaktär - exempelvis "]
[null,"valideras UNSPSC kod utifrån att koden är 8-ställig, ej att den är giltig eller rätt klassificerad."]
[null,"Valideringsfunktionaliteten nyttjar makrofunktionalitet och kräver därför att denna är påslagen. Valideringen är viktig för att säkerställa att prislistan "]
[null,"kan läsas in i kundens beställningsstöd - det är möjligt att nyttja mallen utan valideringsfunktionaliteten  - men det är ej rekommenderat och kan i värsta"]
[null,"fall betyda att prislistan ej kan läsas in."]
[]
[]
[]
[]
[]
[]
[]
[]
[]
[]
[null,"Fliken Artiklar med markerad valideringsfunktion (klicka på loggan)"]
[]
[null,"Förutom valideringsfunktionaliteten och snabbinstruktionen per kolumn som ses på bilden ovan är det möjligt att klicka på kolumnnamnet för att hoppa"]
[null,"direkt till relevant rad i fliken 'Fältformat' där samtliga kolumners syfte beskrivas i detalj. Texten * obl. ovan en kolumn betyder att den kolumnen måste"]
[null,"ifyllas för att katalogen skall uppfylla tekniska samt ev. kundspecifika krav på innehållet."]
[]
[null,"Notera att det ej är tillåtet att plocka bort kolumner - det är däremot helt ok att dölja kolumner för att lättare få överblick över katalogen. Bort-"]
[null,"plockade eller flyttade kolumner betyder att validering/inläsning av prislistan ej är möjlig för kunden."]
[]
[]
[null,"Katalogkvalité - en framgångsfaktor för både kund och leverantör "]
[null,"En katalog som uppfyller alla tekniska krav genom data i obligatoriska kolumner är oftast ganska långt ifrån den kvalité som krävs för ehandel. Det är"]
[null,"väldigt viktigt att beställaren får så mycket och så bra information som möjligt - samtidigt som det är ett problem med bristande artikelmarkeringar"]
[null,"och kompletterande information som t.ex. bilder, länkar och synonymer."]
[]
[null,"Det är därför starkt rekommenderat att alltid försöka uppnå så bra kvalité som möjligt - risken är annars att beställaren inte hittar"]
[null,"artiklarna eller känner sig för osäker för att lägga en beställning."]
[]
[null,"UNSPSC-kod spelar en viktig roll i samband med sökning samt för kundens uppföljning av inköp och det är viktigt att denna anges så exakt som möjigt. "]
[]
[null,"Många av Unit4s kunder har ett stort miljöengagemang och därför vill vi specifikt lyfta fram vikten av att leverantörens sortiment har"]
[null,"rätt miljömärkning i katalogen. Miljömärkningen hanteras genom artikelmarkering enligt SFTI standard. För ytterligare information se instruktion under"]
[null,"fliken 'Fältformat' eller på branchsorganet GS1:s hemsida: http://gs1.se/sv/Elektronisk-handel/Affarsprocesser/Kodlistor/T0142-Artikelmarkeringar/"]
[]
[null,"Exempel på sökresultat i Unit4 E-Procurement"]
[]
[]
[]
[]
[]
[]
[]
[]
[]
[]
[]
[]
[]
[]
[]
[]
[]
[]
[]
[]
[]
[]
[]
[]
[]
[]
[]
[]
[]
[]
[]
[]
[]
[]
[null,"Träfflistan i Unit4 E-Procurement med synliga artikelmärkningar"]
[]
[]
[]
[]
[]
[]
[]
[]
[]
[]
[]
[]
[]
[]
[]
[]
[]
[]
[]
[]
[]
[]
[]
[]
[]
[]
[]
[]
[]
[]
[]
[]
[]
[]
[]
[null,"Artikeldetaljer i Unit4 E-Procurement - beställaren måste få tillräckligt med information för att känna sig säker i sitt val (kvalité)"]
[]
[]
[null,"Övrig information"]
[null,"Denna artikelmall beskriver Unit4 Business Worlds standard för elektroniska prislistor. Mallen är ej lämpad för mycket stora prislistor eller som masterdata"]
[null,"källa. Ifall man som leverantör upptäcker ett tekniskt fel måste man i första hand kontakta sin kund som vid behov kan förmedla support."]
[]
[null,"Artikelmallen används på eget ansvar - det är viktigt att beakta instruktioner och spara ofta. Validering av prislistan kan låsa äldre datorer medans "]
[null,"den pågår."]
[]
[null,"Det rekommenderas att nyttja Excel 2007 eller senare med alla säkerhetsuppdateringar. Kombatibilitet med tidigare Excel versioner garanteras ej."]
[null,"Notera även att valideringen är baserat på Vbscript (beroende mot Windows operativsystemet) varför stöd för Excel/Office på mac-plattformen inte heller kan garanteras."]
[]
[null,"Versionshantering"]
[null,"Version: 2.4 (Initial) - uppgraderat design, validering och buggfixar, bakåtkompatibel med 2.2+."]
[null,"Version: 3.0 - avtal och till/från datum obligatoriska, buggfixar."]
[null,"Version: 3.1 - rebranding, antal i förpackning utökat till 6 tecken, temperaturfält accepterar nu negativa värden, UNSPSC-validering från lista borttagen, buggfixar."]
[null,"Version: 20150610 - Förtydligande avseende att enbart teckenuppsättning enligt ISO-8859-1 stöds."]
[null,"Version: 20151030 - Buggfixar validering och utökning av automatiserat rensning av oönskade tecken som kan stoppa inläsning."]
[null,"Version: 20151201 - Kvantiteter relaterat till beställningsmängder accepterar nu decimaltal."]
[null,"Version: 20211215 - Rättning av makro på långa texter (LongText), Autospar i makro, rättning av Lev.Artikelnr som felaktigt kunde tolkas som ett tal"]
[null,"Version: 20220201 - Tagit bort prestandakrävande validering och rensning av format i Makro på ej obligatoriska textfält."]
[null,"Version: 20220310 - Bildlänk ändrat till fältlängd 250 tecken (max längd för bildlänk i U4ERP)."]

{"sheet":"Artiklar","index":1,"n_rows":112,"n_cols":70,"rows_kept":112,"cut":false,"hidden":false,"merged":[]}
[null,null,"Artiklar.",null,null,null,null,null,null,null,null,null,null,null,null,null,null,null,null,null,null,null,null,null,null,null,null,null,null,null,null,null,null,null,null,null,null,null,null,null,null,null,null,null,null,null,null,null,null,null,null,null,null,null,null,null,null,null,null,null,null,null,null,"","","","","","",""]
[]
[]
[]
[]
[]
[]
[null,null,null,null,"* obl.","* obl.","* obl.",null,"* obl.","* obl.","* obl.","* obl.","* obl.",null,null,null,null,"* obl.","* obl.",null,null,null,"* obl."]
[null,null,"         Endast multiprislista",null,"         Basinformation",null,null,null,null,null,null,null,null,"        + Öka kvalitén",null,null,null,null,null,null,null,null,null,null,null,null,null,null,null,null,null,null,null,null,null,null,null,"        + Öka kvalitén (SFTI)",null,null,null,null,null,null,null,null,null,null,null,null,null,null,null,null,null,null,null,null,null,null,null,null,null,null,"        + Kundspecifika fält"]
[null,null,"Text","Text","Text","Text","Decimal","Decimal","Text","Text","Heltal","UNSPSC","Text","Text","Text","Text","Text","Datum","Datum","Decimal","Decimal","Text","Text","Decimal","Text","Heltal","Text","Decimal","Decimal","Decimal","Text","Text","LongText","LongText","LongText","LongText","LongText","Extra","Extra","Datum","Datum","Extra","Extra","Extra","Heltal","Heltal","Heltal","Heltal","Heltal","Heltal","Heltal","Text","Text","Text","Text","Text","Text","Text","Text","Text","Text","Text","Heltal","Text","Text","Extra","Extra","Extra","Extra","LongText"]
[null,null,"25",255,35,255,13,13,3,25,4,8,1,3,25,3,25,10,10,13,13,35,255,13,3,6,3,15,15,15,5,35,250,350,350,350,350,35,3,10,10,17,3,35,20,20,20,18,18,18,18,3,3,3,3,3,3,3,3,3,35,35,18,18,12,20,20,20,20,350]
[null,null,"Leverantörsnr.","Leverantörsnamn","Lev. artikelnr.","Artikelbeskrivning","Pris","Prisbas","Prisenhet","Valuta","Ledtid","UNSPSC","Sortiment","Varugrupp 1","Kod 1","Varugrupp 2","Kod 2","Datum från","Datum till","Vikt","Volym","Varumärke","Avtals.ID","Jmf.pris","Jmf.Prisenhet","Antal i förpackning","Best.enhet","Min.ord.kvt.","Till.ord.kvt.","Rek. ord. kvt.","Produktgrupp (kod)","Produktgrupp (beskr.)","Bildlänk","Internt dokument","Externt dokument","Synonymer","Varutext","Kompl. varu id","Tillg. kod","Tillg. datum","Sen. tillg. datum","Förpackningstyp","Returemballage","Pantkod","Förp. bredd","Förp. djup","Förp. höjd","Max förv.temp.","Min förv.temp.","Max förv.fukt.","Min förv.fukt.","Art.markering 1","Art.markering 2","Art.markering 3","Art.markering 4","Art.markering 5","Art.markering 6","Art.markering 7","Art.markering 8","Art.markering 9","Läkemedelskod","Läkemedelsgrupp","Kvantitetströskel","Kvantitetstak","Formulär","Fri text 1","Fri text 2","Fri text 3","Fri text 4","Fri text 5"]
[1]
[2]
[3]
[4]
[5]
[6]
[7]
[8]
[9]
[10]
[11]
[12]
[13]
[14]
[15]
[16]
[17]
[18]
[19]
[20]
[21]
[22]
[23]
[24]
[25]
[26]
[27]
[28]
[29]
[30]
[31]
[32]
[33]
[34]
[35]
[36]
[37]
[38]
[39]
[40]
[41]
[42]
[43]
[44]
[45]
[46]
[47]
[48]
[49]
[50]
[51]
[52]
[53]
[54]
[55]
[56]
[57]
[58]
[59]
[60]
[61]
[62]
[63]
[64]
[65]
[66]
[67]
[68]
[69]
[70]
[71]
[72]
[73]
[74]
[75]
[76]
[77]
[78]
[79]
[80]
[81]
[82]
[83]
[84]
[85]
[86]
[87]
[88]
[89]
[90]
[91]
[92]
[93]
[94]
[95]
[96]
[97]
[98]
[99]
[100]

{"sheet":"SVEkatalog_Artiklar","index":2,"n_rows":41,"n_cols":16,"rows_kept":41,"cut":false,"hidden":true,"merged":[]}
[null,"Svekatalog bas"]
[]
[]
[null,"Leverantörens ID","5512345678","SE:ORGNR"]
[null,"Leverantörens namn","Supplier AB"]
[null,"Köparens ID","7312305000009","GLN"]
[null,"Köparens namn","Customer 1"]
[null,"Avtal/kontrakt","CT26262"]
[null,"Prislistestatus","REPLACE"]
[null,"Prislistenummer",10002]
[null,"Föregående prislista",10001]
[null,"Prislistedatum",20111115]
[null,"Första giltighetsdatum",20111201]
[]
["Rad-nummer","Leverantörens artikelnummer","Artikelns identitet, GTIN","Artikelbenämning","Minsta order-kvantitet","Mått-enhet för kvantitet","Tilläggs-order-kvantitet","Pris belopp","Enhets-prisbas","Pristyp","Avtalad artikel","(Moms%) Skatte-sats","Skatte-kategori","Skattetyp","Åtgärds-kod","Beställ-ningsbar indikator"]
[{"$f":"IF(OR(B16<>\"\",C16<>\"\"),ROW()-15,\"\")","v":1},5454,null,"Kopieringspapper CopyC oh 80g",2500,"EA",2500,49.95,1000,null,"true",25,"S",{"$f":"IF(OR(A16<>\"\",B16<>\"\"),\"VAT\",\"\"\"\")","v":"VAT"},{"$f":"IF(OR(B16<>\"\",C16<>\"\"),\"NEW\",\"\")","v":"NEW"},{"$f":"IF(A16 <> \"\",\"true\",\"\")","v":"true"}]
[{"$f":"IF(OR(B17<>\"\",C17<>\"\"),ROW()-15,\"\")","v":2},35,7300015200352,"DVD –R 4,7GB 16X SPINDEL 50 pack",1,"EA",null,275.99,null,null,"false",25,"S",{"$f":"IF(OR(A17<>\"\",B17<>\"\"),\"VAT\",\"\"\"\")","v":"VAT"},{"$f":"IF(OR(B17<>\"\",C17<>\"\"),\"NEW\",\"\")","v":"NEW"},"true"]
[]
[]
[]
[]
[]
[]
[]
[]
[]
[]
[]
[]
[{"$f":"IF(OR(B30<>\"\",C30<>\"\"),ROW()-15,\"\")","v":""},null,null,null,null,null,null,null,null,null,null,null,null,{"$f":"IF(OR(A30<>\"\",B30<>\"\"),\"VAT\",\"\")","v":""},{"$f":"IF(OR(B30<>\"\",C30<>\"\"),\"NEW\",\"\")","v":""},{"$f":"IF(A30 <> \"\",\"TRUE\",\"\")","v":""}]
["",{"$f":"IF(C31=\"NY\",B30+1,\"\")","v":""},null,null,null,null,null,null,null,null,null,null,null,"","",""]
["",null,null,null,null,null,null,null,null,null,null,null,null,"","",""]
["",null,null,null,null,null,null,null,null,null,null,null,null,"","",""]
["",null,null,null,null,null,null,null,null,null,null,null,null,"","",""]
["",null,null,null,null,null,null,null,null,null,null,null,null,"","",""]
["",null,null,null,null,null,null,null,null,null,null,null,null,null,"",""]
["",null,null,null,null,null,null,null,null,null,null,null,null,null,"",""]
[null,null,null,null,null,null,null,null,null,null,null,null,null,null,"",""]
[null,null,null,null,null,null,null,null,null,null,null,null,null,null,null,""]
[null,null,null,null,null,null,null,null,null,null,null,null,null,null,null,""]
[null,null,null,null,null,null,null,null,null,null,null,null,null,null,null,""]

{"sheet":"Fältformat","index":3,"n_rows":75,"n_cols":9,"rows_kept":75,"cut":false,"hidden":false,"merged":[]}
[]
[]
[]
[]
[]
[null,"Fält och format."]
[null,"Nedan finns riktlinjer för de fält och uppgifter som kan anges och i vilka format de ska fyllas i för att kunna läsas in i Unit4 E-Procurement."]
[null,"Säkerställ också att du läst instruktionerna i fliken Instruktioner."]
[null,"Fältnamn","Beskrivning av hur fältet används","Extra info","Fälttyp","Fältlängd","Exempel","Sökbart i U4BW","Valideras av makrot (fältlängd och datatyp valideras alltid)"]
[null,"Leverantörsnummer","Leverantörsnummer för leverantören i Unit4 Business World. Anges enbart i de fall prislistan upprättas av köparen själv och avser en \"multiprislista\" med artiklar från flera leverantörer i en och samma prislista.",null,"Text",25,"43","Ja","Obligatorisk för multiprislista"]
[null,"Leverantörsnamn","Leverantörsnamn för leverantören i Unit4 Business World. Används enbart för information, för att klargöra leverantörsnumret (se ovan).",null,"Text",255,"Testleverantören AB","Ja"]
[null,"Lev. artikelnr.","Leverantörens artikelnummer. Bör anges i samma format som i tryckta kataloger och webshop-kataloger.",null,"Text",35,"12345","Ja","Obligatorisk"]
[null,"Artikelbeskrivning","Tydlig och utförlig beskrivning av den aktuella produkten och dess egenskaper. Informationen bör vara unik. \nFältet bör innehålla information om t.ex: Typ av produkt - Märke och modell - Nyckelord. \nUndvik att lägga in radbrytningar (t.ex. de som skapas vid ALT + ENTER i en cell), TAB eller andra specialtecken i detta fält då inläsningen kan påverkas. Valideringsscriptet kommer försöka rensa bort dessa med automatik. \nNotera att HTML taggar ej kan användas i detta fält. Enbart teckenuppsättning enligt ISO-8859-1 stöds.",null,"Text",255," USB-minne Transcend JetFlash V30 1GB","Ja","Obligatorisk"]
[null,"Pris","Det kundunika nettopriset för artikeln i den angivna enheten och valutan. Priset ska anges med max 2 decimaler. Behövas fler decimaler bör istället prisbas nyttjas - många U4BW kunder har medvetet valt att inte hantera flera decimaler i sin uppsättning.",null,"Decimal",13,249.5,"Nej (men sorteringsbart)","Obligatorisk. Max 2 decimaler."]
[null,"Prisbas","Antalet enheter för vilket priset gäller (om inte per 1 ST), t.ex. om priset gäller för 100 ST. Uppgiften används med fördel tillsammans med Jämförpris.",null,"Decimal",13,100,"Nej"]
[null,"Prisenhet","Den enhet för vilken priset gäller. Anges i enhetskod med max tre tecken. Skall vara en giltig enhetskod (se separat lista). Förpackningsstorlekar, t.ex. en enhet består av 100 ST anges i artikelbeskrivningen. ","Enhetskoder","Text",3,"ST","Nej  ","Obligatorisk. Angivet värdevaldieras mot fliken Enhetskoder."]
[null,"Valuta","Valutakod för artikelns pris.",null,"Text",25,"SEK, NOK, DKK, EUR, USD","Nej","Obligatorisk"]
[null,"Ledtid","Ledtid är den tid som leverantören har att räkna med för att få leverans av varan till sitt lager, eller den tid som leverantören behöver för att färdigställa artikeln för leverans till köparen. ",null,"Heltal",4,4,"Nej","Obligatorisk"]
[null,"UNSPSC","Artikelklassificering enligt UNSPSC-standarden. (United Nations Standard Products and Services Code). Alla artiklar bör klassificeras enligt nivå 3 (klass) eller 4 (vara/tjänst). \n\nNotera att i och med stöd för flera versioner av UNSPSC har valideringen av specifika värden tagits bort ur excelprislistan.Validering mot UNSPSC-koder som är giltiga i kundens system sker istället vid import av prislista.","UNSPSC","Heltal",8,"Färska mjölk- och smörprodukter = 50131701","Ja, via en trädstruktur.","Obligatorisk. Angivet värde måste vara 8 siffror och får ej börja med 0."]
[null,"Sortiment","Sortimentskod som talar om vilken pristyp som avses. A=Kontraktpris (enhetspris som lagts fast i ramavtal). B=Rabatterat listpris (enhetspris som erbjuds av ramavtalsleverantör utöver ramavtalet). \nC=Aktuellt pris (enhetspris som enligt ramavtal får variera från dag till dag under ramavtalsperioden. Typfall för användning är \"frukt och grönt\"). \nD=Aktuellt pris, rabatterat (rabatterat pris som erbjuds utöver ramavtalet och som får variera från dag till dag). \nOm artikeln märks med kod A eller C kommer den att färgmarkeras som en avtalad artikel i Unit4 E-Procurement beställargränssnitt.",null,"Text",1,"A","Ja","Obligatorisk. Angivet värde skall vara A, B, C eller D."]
[null,"Varugrupp","Utöver UNSPSC går det att knyta två extra varugruppskategorier till varje artikel. I kolumnen Varugrupp anges kod för den varugruppskategori som ska användas. Observera att det i PRICAT (SFTIs elektroniska prislista) finns specifika koder för de vanligast förekommande varugruppsstrukturerna. För lista utöver dessa, se handledning på\nhttp://www.gs1.se/sv/GS1-i-praktiken/Kodlistor/T1139-Produktklassificeringsystem/\nI kolumnen Exempel till höger anges några av dessa koder.","GS1 hemsida","Text",3,"ATC (Läkemedel) = ZAT\nCPV (Upphandling och anbud) = GC\nGPC (Global standard, GS1) = BRI\nDabas (Livsmedel) = ZDA","Ja"]
[null,"Kod","Den specifika varugruppskod (inom angiven varugruppsstruktur) som artikeln är knuten till.",null,"Text",25,"J01CE02 (ATC)\n32321000-9 (CPV)\n30009439 (GPC)","Ja"]
[null,"Datum från","Det datum från vilket inköpspriset är giltigt. Om inget datum anges sätts datum default till inläsningsdatum. Anges i formatet YYYY-MM-DD.",null,"Datum",10,"2008-01-01","Nej","Obligatorisk"]
[null,"Datum till","Det datum till vilket inköpspriset är giltigt. Om inget datum anges sätts datum default till 2099-12-31. Anges i formatet YYYY-MM-DD.",null,"Datum",10,"2008-12-31","Nej","Obligatorisk"]
[null,"Vikt","Artikelns vikt angivet i kilogram. Vikt ska anges med två decimaler.",null,"Decimal",13,3.5,"Nej","Max 2 decimaler."]
[null,"Volym","Artikelns volym angivet i Kubikmeter. Volym ska anges med två decimaler.",null,"Decimal",13,0.1,"Nej","Max 2 decimaler."]
[null,"Varumärke","Kod eller varumärke för artikeln, t.ex. från tillverkaren.",null,"Text",35,"Transcend  ","Ja"]
[null,"Avtals.ID","Avtalsnummer (avtalsid) för köpeavtalet mellan köpande/säljande part.",null,"Text",255,null,"Ja","Obligatorisk men kan även anges vid godkännande av prislista (huvudnivå)."]
[null,"Jmf.pris","Jämförpriset för artikeln i angiven Jämförprisenhet. Jämförpriset ska anges med två decimaler. ",null,"Decimal",13,94.5,"Nej (men sorteringsbart)","Max 2 decimaler."]
[null,"Jmf.Prisenhet","Den enhetskod som jämförspriset är angivet i. Kan vara en annan kod är artikelns prisenhet, t.ex. för livsmedel som säljs i ST eller KRT, men där jämförspriset anges i KG. Skall vara en giltig enhetskod (se separat lista). ","Enhetskoder","Text",3,"KG","Nej","Angivet värde skall finnas i fliken Enhetskoder."]
[null,"Antal i förpackning","Antalet konsumtionsförpackningar i en handelsförpackning.",null,"Heltal",6,12,"Nej (men sorteringsbart)"]
[null,"Best.enhet","Används för att ange om artikeln ska beställas i annan enhet än dess Prisenhet, t.ex. om priset är uttryckt i KG men beställning skall göras per ST (ex. beställning av 5 ST  \"Äpplen\", men där priset gäller per KG). Skall vara en giltig enhetskod (se separat lista). ","Enhetskoder","Text",3,"ST","Nej (men sorteringsbart)","Angivet värde skall finnas i fliken Enhetskoder."]
[null,"Minsta orderkvantitet","Minsta kvantitet som får beställas vid ett tillfälle. Max. 2 decimaler.",null,"Decimal",15,10,"Nej (men sorteringsbart)"]
[null,"Tilläggs orderkvantitet","Den kvantitet (multipel) med vilket ordern får utökas utöver minsta orderkvantitet. Anges om annat värde än 1. Max 2 decimaler.",null,"Decimal",15,10,"Nej (men sorteringsbart)"]
[null,"Rekommenderad orderkvantitet","Antal i den närmaste högre förpackningsnivå som beställaren rekommenderas att beställa/avropa. Används när beställaren får beställa konsumentförpackningen (\"bruten handelsförpackning\") men kan få information om närmast högre nivå och då avgöra om \"hel förpackning\" istället ska beställas. Rekommenderad orderkvantitet bör vara jämnt delbart med Minsta orderkvantitet och Tilläggsorderkvantitet. Max 2 decimaler.\n",null,"Decimal",15,10,"Nej"]
[null,"Produktgrupp (kod)","Artikelns produktgruppskod eller klassificering enligt leverantören.",null,"Text",5,"U1100","Nej"]
[null,"Produktgrupp (beskr.)","Artikelns produktgruppsbeskrivning eller klassificering enligt leverantören.",null,"Text",35,"USB-minnen","Ja, via en trädstruktur."]
[null,"Bildlänk","Fältet kan innehålla en referens (URL) till en den bild som ska visas i tillsammans med artikelinformationen. Antingen refererar länken till en plats på leverantörens webbsida eller så sänds bildfilerna in separat till köparen som då sparar ner bildfilerna på sin server och refererar till den lokala serveradressen. Rekommedationen är att länka till bilder på leverentörens webbsida, speciellt om det rör sig om många artiklar som uppdateras i jämna intervall. Skickas bildfiler för lokal lagring skall detta ha överenskommits med köparen på förhand och bildfilerna ska namnsättas till samma som artikelnumret.",null,"LongText",250,"P:\\Temp\\Bilder\\USB1_46140.jpg (lokal adress) / http://www.supplierweb.se/USB1_46140.jpg (leverantörens webbsida)","Nej"]
[null,"Internt dokument","Fältet kan innehålla en referens (URL) eller en sökväg (UNC) till ett internt dokument där köparen kan hitta mer information om artikeln. Kan t.ex. vara en intern beskrivning för vilka regler eller villkor som gäller vid köp av aktuell artikel. Köparen ansvarar för innehållet i det dokument som länken refererar till.",null,"LongText",350,"P:\\Temp\\Dokument\\USB1_46140.doc (lokal adress) ","Nej"]
[null,"Externt dokument","Fältet kan innehålla en referens (URL) till ett externt dokument eller en webbsajt där köparen kan hitta mer information om artikeln. Kan t.ex. vara en ritning, monteringsanvisning, tvättråd, teknisk specifikation etc. Länken bör gå till en adress på leverantörens webbsida och kan vara en HTML-sida, ett PDF-dokument etc. Leverantören ansvarar för innehållet i det dokument som länken refererar till.",null,"LongText",350,"http://www.supplierweb.se/USB1_46140.pdf (leverantörens webbsida)","Nej"]
[null,"Synonymer","Ord som är synonyma med artikeln eller typen av artiklar. Fältet används för att ge träff på artikeln vid sökning . Ett exempel kan vara ord som 'mobil' eller 'nalle' som ska ge träff vid sökning efter en mobiltelefon. Ett tips är att inte ange för omfattande synonymer på flertalet artiklar, då det kan ge alltför många träffar vid sökning. Angivna synonymer bör vara så specifika som möjligt för aktuell artikel. Flera synonymer kan anges och ska då särskiljas med ett blanksteg. ",null,"LongText",350,"mobil nalle lur smartphone","Ja"]
[null,"Varutext","En utförligare beskrivning eller text om artikeln och dess särskilda egenskaper etc, och som inte kan eller bör visas under artikelbeskrivningen.",null,"LongText",350,null,"Ja"]
[null,"Kompletterande varuidentitet","Tillverkarens eller Leverantörens kompletterande identitet på en vara eller tjänst. Används vid behov. Om en artikel identifieras med GTIN kan kompletterande artikelidentitet vara Leverantörens artikelnummer eller Tillverkarens artikelnummer. Om en artikel identifieras med Leverantörens artikelnummer kan Tillverkarens artikelnummer användas som kompletterande artikelidentitet. Om en artikel identifieras med Tillverkarens artikelnummer kan Leverantörens artikelnummer användas som kompletterande artikelidentitet.\n",null,"Extra",35,null,"Nej"]
[null,"Tillgänglighetskod","Kod som anger att informationen endast avser annonsering alt att varan omgående finns tillgänglig. Giltiga koder:\n84E - ny, endast annonsering\n85E - ny, tillgänglig\n94E - borttagning, endast annonsering\n",null,"Extra",3,"85E","Nej"]
[null,"Tillgänglighetsdatum","För beställningsbar artikel anger termen från och med vilket datum en artikel kan beställas.",null,"Datum",10,"2008-01-01","Nej"]
[null,"Senaste tillgänglighetsdatum","Termen anger sista datum en beställningsbar artikel kan beställas från leverantören.",null,"Datum",10,"2008-12-31","Nej"]
[null,"Förpackningstyp","Kod som anger typ av förpackning eller kolli i vilken varan är emballerad. Används vid behov. Se kodlista på: http://gs1.se/sv/Elektronisk-handel/Affarsprocesser/Kodlistor/\n",null,"Extra",17,null,"Nej"]
[null,"Returemballage","Indikator som anger om emballaget eller returenheten är returnerbar eller ej, dvs om förpackningen, pallen etc kan returneras för återanvändning eller ej. Används om förpackningen/emballaget för produkten/artikeln är returnerbart. Kod: Z01 - Returemballage\n",null,"Extra",3,null,"Nej"]
[null,"Pantkod","Kod för pant på förpackningen. Identitet enligt GTIN-13. Måste användas då det finns en pantavgift för förpackningen/emballaget. Se kodlista på: http://gs1.se/sv/Elektronisk-handel/Affarsprocesser/Kodlistor/\n",null,"Extra",35,null,"Nej"]
[null,"Förpackningens bredd","Bredden på förpackningen, sida till sida. Anges i millimeter.",null,"Heltal",20,null,"Nej"]
[null,"Förpackningens djup","Djupet på förpackningen (front till bak). Anges i millimeter.",null,"Heltal",20,null,"Nej"]
[null,"Förpackningens höjd","Höjden på förpackningen (topp till botten). Anges i millimeter.",null,"Heltal",20,null,"Nej"]
[null,"Maximum förvaringstemperatur","Högsta temperatur vid vilken denna artikel får förvaras. Används för temperaturkänsliga produkter. Anges i antal grader Celsius.\n",null,"Heltal",18,null,"Nej","Negativa värden tillåts"]
[null,"Minimum förvaringstemperatur","Lägsta temperatur vid vilken denna artikel får förvaras. Används för temperaturkänsliga produkter. Anges i antal grader Celsius.\n",null,"Heltal",18,null,"Nej","Negativa värden tillåts"]
[null,"Maximum förvaringsfuktighet","Högsta relativa luftfuktighet vid vilken denna artikel får förvaras. Används för fuktighetskänsliga produkter. Anges i antal procent.\n",null,"Heltal",18,null,"Nej"]
[null,"Minimum förvaringsfuktighet","Lägsta relativa luftfuktighet vid vilken denna artikel får förvaras. Används för fuktighetskänsliga produkter. Anges i antal procent.\n",null,"Heltal",18,null,"Nej"]
[null,"Artikelmarkering 1","Markering som finns på förpackningen, t.ex. Z02 för Svanen, Z04 för KRAV eller Z05 för Nyckelhålet. Se kodlista på: http://www.gs1.se/GS1-i-praktiken/Kodlistor/T0142-Artikelmarkeringar/","GS1 hemsida","Text",3,"Z02","Ja"]
[null,"Artikelmarkering 2","Se ovan.",null,"Text",3,null,"Ja"]
[null,"Artikelmarkering 3","Se ovan.",null,"Text",3,null,"Ja"]
[null,"Artikelmarkering 4","Se ovan.",null,"Text",3,null,"Ja"]
[null,"Artikelmarkering 5","Se ovan.",null,"Text",3,null,"Ja"]
[null,"Artikelmarkering 6","Se ovan.",null,"Text",3,null,"Ja"]
[null,"Artikelmarkering 7","Se ovan.",null,"Text",3,null,"Ja"]
[null,"Artikelmarkering 8","Se ovan.",null,"Text",3,null,"Ja"]
[null,"Artikelmarkering 9","Se ovan.",null,"Text",3,null,"Ja"]
[null,"Läkemedelskod","Kod som anger läkemedelsegenskap. Används för att upplysa om att läkemedlet innehåller narkotiskt preparat eller teknisk sprit och därför avropas enligt speciella regler. Giltiga koder:\nZ01 Narkotika enl förteckn II\nZ02 Narkotika enl förteckn III\nZ03 Narkotika enl förteckn IV\nZ04 Narkotika enl förteckn V\nZ09 Teknisk sprit\nZ11 Extempore\nZ12 Licenspreparat\n",null,"Text",35,null,"Nej"]
[null,"Läkemedelsgrupp","Kod som grupperar medicinskt likvärdiga läkemedel. Produkter med samma kod har samma aktiva substans, styrka och beredningsform och är inbördes utbytbara. Används efter överenskommelse med leverantör.\n",null,"Text",35,null,"Nej"]
[null,"Kvantitetströskel","Lägsta kvantitet för ett visst pris. Lägsta kvantitet (volym) för vilket priset gäller. Vid staffling ska kvantitetströskel alltid förekomma.\n",null,"Heltal",18,null,"Nej"]
[null,"Kvantitetstak","Högsta kvantitet för ett visst pris. Högsta kvantitet för vilket priset gäller. Kvantitetstak måste inte användas för sista intervallet i stafflad prislista.\n",null,"Text",18,null,"Nej"]
[null,"Formulär","Artikelformulär kan knytas till artikeln för att ge beställaren möjlighet att skicka extra information till leverantören. Formuläret måste ligga upplagt i Unit4 Business World. Se Manual för systemadministratörer för mer information kring möjligheterna med artikelformulär.",null,"Text",12,null,"Nej"]
[null,"Fri text 1","Fritt att använda efter behov, för statistik, uppföljning etc. Läses in i artikelregistret men presenteras ej vid beställning.",null,"Extra",20,null,"Nej"]
[null,"Fri text 2","Fritt att använda efter behov, för statistik, uppföljning etc. Läses in i artikelregistret men presenteras ej vid beställning.",null,"Extra",20,null,"Nej"]
[null,"Fri text 3","Fritt att använda efter behov, för statistik, uppföljning etc. Läses in i artikelregistret men presenteras ej vid beställning.",null,"Extra",20,null,"Nej"]
[null,"Fri text 4","Fritt att använda efter behov, för statistik, uppföljning etc. Läses in i artikelregistret men presenteras ej vid beställning.",null,"Extra",20,null,"Nej"]
[null,"Fri text 5","Fritt att använda efter behov, för statistik, uppföljning etc. Läses in i artikelregistret men presenteras ej vid beställning.",null,"LongText","350",null,"Nej"]

{"sheet":"Enhetskoder","index":4,"n_rows":63,"n_cols":3,"rows_kept":63,"cut":false,"hidden":false,"merged":[]}
[]
[]
[]
[]
[]
[null,"Tillåtna enhetskoder."]
[null,"Nedan listas de vanligast förekommande enhetskoderna. Om lämplig enhetskod saknas i listan går det att skriva över en av nedan befintliga."]
[null,"Notera att relevanta enheter även måste finnas upplagda i Unit4 Business World."]
[null,"Enhetskod","Beskrivning"]
[null,"BAL","Bal"]
[null,"BAT","Batch"]
[null,"BL","Blad"]
[null,"BNT","Bunt"]
[null,"BR","Bricka"]
[null,"BRK","Burk"]
[null,"BRÄ","Bräda"]
[null,"CL","Centiliter"]
[null,"CM","Centimeter"]
[null,"CM2","Kvadratcentimeter"]
[null,"CM3","Kubikcentimeter"]
[null,"DAG","Dag"]
[null,"DL","Deciliter"]
[null,"DM","Decimeter"]
[null,"DM3","Kubikdecimeter"]
[null,"DNK","Dunk"]
[null,"DUS","Dussin"]
[null,"FAT","Fat"]
[null,"FL","Flaska"]
[null,"G","Gram"]
[null,"HG","Hektogram"]
[null,"HIN","Hink"]
[null,"KAP","Kapsyl"]
[null,"KBM","Kubikmeter"]
[null,"KG","Kilo"]
[null,"KM","Kilometer"]
[null,"KRG","Korg"]
[null,"KRT","Kartong"]
[null,"KVM","Kvadratmeter"]
[null,"L","Liter"]
[null,"LGD","Längd"]
[null,"LÅD","Låda"]
[null,"M","Meter"]
[null,"MG","Milligram"]
[null,"MIN","Minuter"]
[null,"ML","Milliliter"]
[null,"MM","Millimeter"]
[null,"MM2","Kvadratmillimeter"]
[null,"MM3","Kubikmillimeter"]
[null,"MÅN","Månader"]
[null,"PAR","Par"]
[null,"PKT","Paket"]
[null,"PLL","Pall"]
[null,"PÅS","PÅS"]
[null,"RLL","Rulle"]
[null,"SET","Set"]
[null,"SKV","Skiva"]
[null,"ST","Styck"]
[null,"SÄ","Säck"]
[null,"TIM","Timmar"]
[null,"TON","Ton"]
[null,"TUB","Tub"]
[null,"V","Veckor"]
[null,"ÅR","År"]

{"sheet":"Import","index":5,"n_rows":2,"n_cols":68,"rows_kept":2,"cut":false,"hidden":true,"merged":[]}
["Leverantörsnr.","Leverantörsnamn","Lev. artikelnr.","Artikelbeskrivning","Pris","Prisbas","Prisenhet","Valuta","Ledtid","UNSPSC","Sortiment","Varugrupp 1","Kod 1","Varugrupp 2","Kod 2","Datum från","Datum till","Vikt","Volym","Varumärke","Avtals.ID","Jmf.pris","Jmf.Prisenhet","Antal i förpackning","Best.enhet","Min.ord.kvt.","Till.ord.kvt.","Rek. ord. kvt.","Produktgrupp (kod)","Produktgrupp (beskr.)","Bildlänk","Internt dokument","Externt dokument","Synonymer","Varutext","Kompl. varu id","Tillg. kod","Tillg. datum","Sen. tillg. datum","Förpackningstyp","Returemballage","Pantkod","Förp. bredd","Förp. djup","Förp. höjd","Max förv.temp.","Min förv.temp.","Max förv.fukt.","Min förv.fukt.","Art.markering 1","Art.markering 2","Art.markering 3","Art.markering 4","Art.markering 5","Art.markering 6","Art.markering 7","Art.markering 8","Art.markering 9","Läkemedelskod","Läkemedelsgrupp","Kvantitetströskel","Kvantitetstak","Formulär","Fri text 1","Fri text 2","Fri text 3","Fri text 4","Fri text 5"]
["1234","Speedo AB","12345","Speedos, limegröna, Str. XS","199,00",null,"STK","SEK","3","53102801","A",null,null,null,null,null,null,null,null,null,null,"299","STK","1",null,"1","1"]

{"sheet":"Versionshantering","index":6,"n_rows":88,"n_cols":3,"rows_kept":88,"cut":false,"hidden":true,"merged":[]}
[]
[]
[]
[]
[]
[null,"Versionshantering"]
[null,"Nedan visas en kort beskrivning av de förändringar som gjorts i olika versioner av Agresso Excelprislista."]
[]
[null,"Version 3.0"]
[null,null,"Inga ändringar"]
[null,"Version 2.4 (ersätter version 2.3)"]
[null,null,"Inga ändringar"]
[null,"Version 2.3 (ersätter version 2.2)"]
[null,"Formulär","Fältet utökat till 12 tecken"]
[null,"UNSPSC","Rullistan borttagen."]
[null,"Version 2.2 (ersätter version 2.1)"]
[null,"Varugrupp 1","Ny kolumn"]
[null,"Kod 1","Ny kolumn"]
[null,"Varugrupp 2","Ny kolumn"]
[null,"Kod 2","Ny kolumn"]
[null,"Formulär","Nu går det att knyta artikeln till ett i AGRESSO registrerat formulär direkt i excelprislistan."]
[null,"Dataverifiering","Förbättring av prestanda för valideringsfunktionen. Dataverifiering av vissa tecken samt otillåten formatering av fält (ofta förekommande då man klistrar in värden från anna fil)."]
[null,"Version 2.1 (ersätter version 2.0)"]
[null,"Leverantörsnummer","Ny kolumn"]
[null,"Leverantörsnamn","Ny kolumn"]
[null,"Formulär","Ny kolumn. Används för närvarande inte. (Kommer att användas för formulärsartiklar)."]
[null,"Fri text 1","Ny kolumn"]
[null,"Fri text 2","Ny kolumn"]
[null,"Fri text 3","Ny kolumn"]
[null,"Fri text 4","Ny kolumn"]
[null,"Fri text 5","Ny kolumn"]
[null,"Varumärke","Utökat till 35 tecken"]
[null,"Validering av artikeluppgifter","Excelmakrot validerar nu även att leverantörens artikelnummer är unikt (dubletter får inte förekomma)."]
[null,"Dataverifiering","En dataverifiering av teckenlängd görs per fält så fort värdet angivits. För enhetskoder och UNSPSC-koder görs även validering mot respektive kodlistor (separata flikar)."]
[null,"Version 2.0 (ersätter version 1.2)"]
[null,"Validering av artikeluppgifter","Ny knapp som kan användas för att via ett Excelmakro kontrollera/validera alla artikeluppgifter innan filen sparas/skickas. T.ex. kontrolleras teckenlängder, datatyper, tvingande uppgifter och giltiga/ogiltiga värden."]
[null,"Prisbas","Ny kolumn"]
[null,"Prisenhet","Kolumnnamnet ändrat från Enhet till Prisenhet"]
[null,"Jmf.Prisenhet","Kolumnnamnet ändrat från Prisenhet till Jmf.Prisenhet"]
[null,"Best.enhet","Ny kolumn"]
[null,"Rekommenderad orderkvantitet","Ny kolumn"]
[null,"Kompletterande varuidentitet","Ny kolumn"]
[null,"Tillgänglighetskod","Ny kolumn"]
[null,"Tillgänglighetsdatum","Ny kolumn"]
[null,"Senaste tillgänglighetsdatum","Ny kolumn"]
[null,"Förpackningstyp","Ny kolumn"]
[null,"Returemballage","Ny kolumn"]
[null,"Pantkod","Ny kolumn"]
[null,"Förpackningens bredd","Ny kolumn"]
[null,"Förpackningens djup","Ny kolumn"]
[null,"Förpackningens höjd","Ny kolumn"]
[null,"Maximum förvaringstemperatur","Ny kolumn"]
[null,"Minimum förvaringstemperatur","Ny kolumn"]
[null,"Maximum förvaringsfuktighet","Ny kolumn"]
[null,"Minimum förvaringsfuktighet","Ny kolumn"]
[null,"Artikelmarkering 1","Ny kolumn"]
[null,"Artikelmarkering 2","Ny kolumn"]
[null,"Artikelmarkering 3","Ny kolumn"]
[null,"Artikelmarkering 4","Ny kolumn"]
[null,"Artikelmarkering 5","Ny kolumn"]
[null,"Artikelmarkering 6","Ny kolumn"]
[null,"Artikelmarkering 7","Ny kolumn"]
[null,"Artikelmarkering 8","Ny kolumn"]
[null,"Artikelmarkering 9","Ny kolumn"]
[null,"Läkemedelskod","Ny kolumn"]
[null,"Läkemedelsgrupp","Ny kolumn"]
[null,"Kvantitetströskel","Ny kolumn"]
[null,"Kvantitetstak","Ny kolumn"]
[null,"Version 1.2 (release 2010-02-01) ersätter version 4.0"]
[null,"Artikelbeskrivning","Utökat till 255 tecken"]
[null,"Externt projektID","Ny kolumn"]
[null,"Avtal","Utökat till 255 tecken"]
[null,"Avtalsbeskrivning","Utökat till 500 tecken"]
[null,"Avtalsdatum från","Ny kolumn"]
[null,"Avtalsdatum till","Ny kolumn"]
[null,"Antal i förpackning","Ny kolumn"]
[null,"Min.ord.kvt.","Ny kolumn"]
[null,"Till.ord.kvt","Ny kolumn"]
[null,"Produktgrupp (kod)","Utökat till 5 tecken"]
[null,"Produktgrupp (beskr.)","Utökat till 35 tecken"]
[null,"Internt dokument","Ny kolumn"]
[null,"Avtalslänk","Ny kolumn"]
[null,"Varutext","Ny kolumn"]
[null,"Externt projektID","Borttagen kolumn"]
[null,"Avtalsbeskrivning","Borttagen kolumn"]
[null,"Avtalsdatum från","Borttagen kolumn"]
[null,"Avtalsdatum till","Borttagen kolumn"]
[null,"Avtalslänk","Borttagen kolumn"]

{"sheet":"Sheet1","index":7,"n_rows":0,"n_cols":0,"rows_kept":0,"cut":false,"hidden":true,"merged":[]}

{"sheet":"SVE_Mappning","index":8,"n_rows":35,"n_cols":4,"rows_kept":35,"cut":false,"hidden":true,"merged":[]}
["Mappning","BAS"]
["Mappning av huvud"]
["UBL Version Identifier","<cbc:UBLVersionID>2.1#SFTI</cbc:UBLVersionID>","M"]
["Customization Identifier","<cbc:CustomizationID>urn:www.cenbii.eu:transaction:biicoretrdm019:ver2.0#SFTI:ver1.0</cbc:CustomizationID>","M"]
["Profile Identifier","<cbc:ProfileID>urn:www.cenbii.eu:profile:bii01:ver2.0#SFTI:ver1.0</cbc:ProfileID>","M"]
[]
["Leverantörens ID","Catalogue/cac:ProviderParty/cac:PartyIdentification/cbc:ID   schemeID=\"SE:ORGNR\"","M"]
["Leverantörsnamn","Catalogue/cac:ProviderParty/cac:PartyName/cbc:Name","O"]
["Köparens ID","Catalogue/cac:ReceiverParty/cac:PartyIdentification/cbc:ID   schemeID=\"GLN\", agencyID=\"9\"","M"]
["Köparens namn","Catalogue/cac:ReceiverParty/cac:PartyName/cbc:Name","O"]
["Referens till avtal/kontrakt","Catalogue/cac:ReferencedContract/cbc:ID","M"]
["Prislistestatus","Catalogue/cbc:ActionCode","M","NEW eller REPLACE"]
["Prislistenummer","Catalogue/cbc:ID","M"]
["Referens till föregående prislista","Catalogue/cac:SourceCatalogueReference/cbc:ID","D"]
["Prislistedatum","Catalogue/cbc:IssueDate","M"]
["Första giltighetsdatum","Catalogue/cac:ValidityPeriod/cbc:StartDate","O"]
[]
[]
["Mappning av rader"]
["Radnummer","Catalogue/cac:CatalogueLine/cbc:ID","M"]
["Leverantörens artikelnummer","Catalogue/cac:CatalogueLine/cac:Item/cac:SellersItemIdentification/cbc:ID","D"]
["Artikelns identitet, GTIN","Catalogue/cac:CatalogueLine/cac:Item/cac:StandardItemIdentification/cbc:ID","D"]
["Artikelbenämning","Catalogue/cac:CatalogueLine/cac:Item/cbc:Name","M"]
["Minsta orderkvantitet","Catalogue/cac:CatalogueLine/cbc:MinimumOrderQuantity","M"]
["Tilläggsorderkvantitet","Catalogue/cac:CatalogueLine/cbc:OrderQuantityIncrementNumeric","O"]
["Måttenhet för kvantitet","Catalogue/cac:CatalogueLine/cbc:MinimumOrderQuantity   unitCode","O","Enligt Sveorder. Ex GRM, KGM, LTR, TIM EA. Anges alltid"]
["Pris, belopp","Catalogue/cac:CatalogueLine/cac:RequiredItemLocationQuantity/cac:Price/cbc:PriceAmount  currencyID=\"SEK\"","M","Valuta sätts alltid till SEK"]
["Enhetsprisbas","Catalogue/cac:CatalogueLine/cac:RequiredItemLocationQuantity/cac:Price/cbc:BaseQuantity","O"]
["Pristyp","Catalogue/cac:CatalogueLine/cac:RequiredItemLocationQuantity/cac:Price/cbc:PriceTypeCode","M","CP eller ej med"]
["Avtalad artikel, indikator","Catalogue/cac:CatalogueLine/cac:Item/cac:TransactionConditions/cbc:ID   TransactionConditions/ActionCode=\"CT\"","O","true eller false"]
["Skattesats","Catalogue/cac:CatalogueLine/cac:Item/cac:ClassifiedTaxCategory/cbc:Percent","M","Moms%"]
["Skattekategori","Catalogue/cac:CatalogueLine/cac:Item/cac:ClassifiedTaxCategory/cbc:ID","M","S, E"]
["Skattetyp","Catalogue/cac:CatalogueLine/cac:Item/cac:ClassifiedTaxCategory/cac:TaxScheme/cbc:ID","M","Göm. Alltid VAT"]
["Rad åtgärdskod","Catalogue/cac:CatalogueLine/cbc:ActionCode","M","Göm. Alltid NEW"]
["Beställningsbar indikator","Catalogue/cac:CatalogueLine/cbc:OrderableIndicator","M","Göm. Alltid true"]

{"sheet":"SVE_Kodlista","index":9,"n_rows":17,"n_cols":8,"rows_kept":17,"cut":false,"hidden":true,"merged":[]}
["Prislistestatus","Enhet för order",null,"Pristyp",null,"Momskod","Avtalad artikel","Id schema"]
["NEW","EA",null,"CP","Aktuellt pris","S","true","GLN"]
["REPLACE","KGM",null,null,null,"E","false","SE:ORGNR"]
[null,"GRM"]
[null,"MGM"]
[null,"TON"]
[null,"LTR"]
[null,"MLT"]
[null,"MTQ"]
[null,"MTR"]
[null,"MMT"]
[null,"KTM"]
[null,"CMT"]
[null,"HUR"]
[null,"DAY"]
[null,"MON"]
[null,"MTK"]

{"sheet":"temp_intern","index":10,"n_rows":0,"n_cols":0,"rows_kept":0,"cut":false,"hidden":true,"merged":[]}